[Event "WSTCC-50 2024"]
[Site "Krakow"]
[Date "2024.07.04"]
[Round "3.14"]
[White "Becker, Rogerio Sperb"]
[Black "Rowe, Peter"]
[Result "1-0"]
[ECO "A20"]
[WhiteElo "2053"]
[BlackElo "1960"]
[Annotator "NA RC"]
[PlyCount "97"]
[EventDate "2024.07.01"]
[EventType "team-tourn"]
[EventCountry "POL"]
[SourceTitle "playchess.com"]
[Source "ChessBase"]
[SourceQuality "1"]
[TimeControl "40/5400+30:1800+30"]

1. c4 {[%emt 0:00:59]} e5 {[%emt 0:00:50]} 2. g3 {[%emt 0:00:08]} d6 {[%emt 0:00:32]} 3. Bg2 {[%emt 0:00:36]} Be7 {[%emt 0:00:42]} 4. Nc3 {[%emt 0:01:08]} f5 {[%emt 0:00:39]} 5. Nf3 {[%emt 0:05:30]} Nf6 {[%emt 0:01:05]} 6. O-O {[%emt 0:00:27]} O-O {[%emt 0:00:45]} 7. d3 {[%emt 0:00:43]} c6 {[%emt 0:06:41]} 8. c5 {[%emt 0:06:32]} e4 {[%emt 0:06:33]} 9. cxd6 {[%emt 0:03:22]} Bxd6 {[%emt 0:03:20]} 10. dxe4 {[%emt 0:01:39]} fxe4 {[%emt 0:04:26]} 11. Ng5 {[%emt 0:01:18]} Qe7 {[%emt 0:05:37]} 12. Ngxe4 {[%emt 0:02:32]} Nxe4 {[%emt 0:03:14]} 13. Nxe4 {[%emt 0:00:16]} Bc7 {[%emt 0:01:46]} 14. Bd2 {[%emt 0:02:57]} Be6 {[%emt 0:04:34]} 15. Ng5 {[%emt 0:06:53]} Bb6 {[%emt 0:02:05]} 16. Nxe6 {[%emt 0:01:36]} Qxe6 {[%emt 0:00:19]} 17. Qb3 {[%emt 0:00:31]} Qxb3 {[%emt 0:00:32]} 18. axb3 {[%emt 0:00:02]} Nd7 {[%emt 0:00:45]} 19. Bc3 {[%emt 0:04:15]} Nf6 {[%emt 0:03:56]} 20. Bf3 {[%emt 0:13:15]} g5 {[%emt 0:08:24]} 21. h3 {[%emt 0:02:41]} Kg7 {[%emt 0:01:58]} 22. Rad1 {[%emt 0:01:23]} Rad8 {[%emt 0:00:30]} 23. e3 {[%emt 0:03:21]} Kf7 {[%emt 0:04:38]} 24. Kg2 {[%emt 0:04:52]} h6 {[%emt 0:02:21]} 25. Rfe1 {[%emt 0:05:13]} Kg6 {[%emt 0:04:52]} 26. Rxd8 {[%emt 0:02:07]} Rxd8 {[%emt 0:00:52]} 27. Rd1 {[%emt 0:00:25]} Rxd1 {[%emt 0:01:07]} 28. Bxd1 {[%emt 0:00:45]} Nd5 {[%emt 0:01:07]} 29. Bc2+ {[%emt 0:01:26]} Kf7 {[%emt 0:00:23]} 30. Bd2 {[%emt 0:00:19]} Bc5 {[%emt 0:04:52]} 31. e4 {[%emt 0:02:44]} Nb4 {[%emt 0:00:41]} 32. Bb1 {[%emt 0:00:15]} a5 {[%emt 0:00:19]} 33. Bc3 {[%emt 0:01:00]} b5 {[%emt 0:02:40]} 34. f4 {[%emt 0:01:15]} Be3 {[%emt 0:01:08]} 35. Kf3 {[%emt 0:00:46]} Bc1 {[%emt 0:00:18]} 36. f5 {[%emt 0:06:41]} h5 {[%emt 0:01:24]} 37. e5 {[%emt 0:01:26]} Nd5 {[%emt 0:01:46]} 38. Bd4 {[%emt 0:00:27]} c5 {[%emt 0:00:26]} 39. e6+ {[%emt 0:02:46]} Ke8 {[%emt 0:01:35]} 40. Be5 {[%emt 0:02:14]} Ke7 {[%emt 0:05:02]} 41. Bd3 {[%emt 0:32:17]} c4 {[%emt 0:40:06]} 42. bxc4 {[%emt 0:02:49]} bxc4 {[%emt 0:00:18]} 43. Bxc4 {[%emt 0:01:25]} g4+ {[%emt 0:00:11]} 44. hxg4 {[%emt 0:00:18]} hxg4+ {[%emt 0:00:03]} 45. Ke2 {[%emt 0:01:24]} Nf6 {[%emt 0:01:59]} 46. Kd3 {[%emt 0:01:31]} Nh5 {[%emt 0:02:42]} 47. b3 {[%emt 0:02:25]} Nf6 {[%emt 0:01:20]} 48. Bc3 {[%emt 0:01:01]} Bf4 {[%emt 0:02:12]} 49. Bxf6+ {[%emt 0:01:12]} 1-0

[Event "WSTCC-50 2024"]
[Site "Krakow"]
[Date "2024.07.04"]
[Round "3.15"]
[White "Regan, Natasha K"]
[Black "Ortega, Lexy"]
[Result "1-0"]
[ECO "A09"]
[WhiteElo "2015"]
[BlackElo "2386"]
[Annotator "TA"]
[PlyCount "79"]
[EventDate "2024.07.01"]
[EventType "team-tourn"]
[EventCountry "POL"]
[SourceTitle "playchess.com"]
[Source "ChessBase"]
[SourceQuality "1"]
[TimeControl "40/5400+30:1800+30"]

{[%evp 9,79,0,0,-6,4,-10,0,0,0,0,0,-35,-30,-49,-74,-120,-55,-63,-60,-51,-51,-63,-52,-52,0,0,0,0,0,0,0,0,0,0,0,-3,0,-4,0,0,0,0,0,0,6,14,9,0,0,8,16,0,10,8,10,8,8,0,0,0,0,0,0,0,0,0,0,0,29976,29977,29976,29977]} 1. Nf3 {[%emt 0:00:04]} d5 {[%emt 0:00:04]} 2. c4 {[%emt 0:00:19]} d4 {[%emt 0:00:05]} 3. b4 {[%emt 0:00:26][%cal Bb2b4,Bb4b5][%mdl 32]} f6 {[%emt 0:00:07]} 4. e3 {[%emt 0:00:31]} e5 {[%emt 0:00:15]} 5. c5 {[%emt 0:00:39]} a5 {[%emt 0:00:13]} 6. Qa4+ {[%emt 0:01:03]} (6. Nxe5 $5 fxe5 7. Qh5+ Kd7 8. Qf5+ Ke7 9. Qxe5+ Be6 10. Bc4 $17) 6... Bd7 {[%emt 0:00:21]} 7. b5 $1 {[%emt 0:01:20]} Bxc5 {[%emt 0:00:01]} 8. Bc4 {[%emt 0:01:55] The position is equal.} Ne7 {[%emt 0:00:21] White must now prevent ...Bg4.} 9. exd4 {[%emt 0:03:14]} exd4 {[%emt 0:00:44]} 10. O-O {[%emt 0:03:30]} Bg4 {[%emt 0:04:56] aiming for ...Bxf3.} 11. Ba3 {[%emt 0:20:12]} Nd7 {[%emt 0:15:24]} 12. Re1 {[%emt 0:11:38]} ({White should play} 12. Be2) 12... Nb6 {[%emt 0:18:07]} (12... Bxf3 $17 13. Bxc5 Nxc5) 13. Qb3 $15 {[%emt 0:03:49]} Qd6 {[%emt 0:14:31] Hoping for ...a4.} 14. Bf7+ {[%emt 0:08:43]} Kf8 $1 {[%emt 0:00:21]} 15. Be6 {[%emt 0:08:06]} Bxe6 {[%emt 0:12:32]} (15... a4 {is more complex.} 16. Qd3 Bxe6 17. Bxc5 Qxc5 18. Rxe6 Kf7) 16. Bxc5 $1 {[%emt 0:07:27]} (16. Rxe6 $2 {perishes.} a4 17. Rxd6 axb3 18. Rxd4 Bxd4 (18... Bxa3 $2 19. Nxa3 b2 20. Rf1 $19) 19. Nxd4 bxa2 20. Rxa2 Nc4 $19 (20... Kf7 $2 21. Rb2 $19)) 16... Bxb3 {[%emt 0:13:28]} ({Better is} 16... Qxc5 $15 17. Qxe6 Re8) 17. Bxd6 $11 {[%emt 0:00:22]} cxd6 {[%emt 0:00:06]} 18. axb3 {[%emt 0:00:20]} Kf7 {[%emt 0:00:02]} 19. Nxd4 {[%emt 0:01:07]} a4 {[%emt 0:05:10]} 20. bxa4 {[%emt 0:02:27]} Rxa4 {[%emt 0:00:34]} 21. Rxa4 {[%emt 0:00:38]} Nxa4 {[%emt 0:00:02]} 22. h4 {[%emt 0:03:22]} Rc8 {[%emt 0:00:16]} 23. Na3 {[%emt 0:03:32] Prevents Rc4.} Nb6 {[%emt 0:03:36]} 24. g3 {[%emt 0:05:04]} Nc4 {[%emt 0:01:28]} 25. Nxc4 {[%emt 0:00:54]} Rxc4 {[%emt 0:00:10][%mdl 4096] Endgame. KRN-KRN} 26. Ne6 {[%emt 0:00:54]} Rc8 {[%emt 0:02:57] [#]} 27. Nxg7 $1 {[%emt 0:06:08]} Rc5 $1 {[%emt 0:00:23]} 28. Ne6 {[%emt 0:02:07]} Rxb5 {[%emt 0:00:11]} 29. Kg2 {[%emt 0:01:21]} Nc6 {[%emt 0:05:56]} 30. d4 {[%emt 0:01:53] Prevents Re5.} d5 {[%emt 0:00:34]} 31. Nc7 {[%emt 0:00:32]} Rb4 {[%emt 0:00:51]} 32. Nxd5 {[%emt 0:00:44]} Rxd4 {[%emt 0:00:02]} 33. Nf4 {[%emt 0:00:32]} b5 {[%emt 0:01:13]} 34. Re6 {[%emt 0:00:59]} Rxf4 {[%emt 0:01:35]} 35. Rxc6 {[%emt 0:00:12]} Rc4 {[%emt 0:00:14]} 36. Rxc4 {[%emt 0:01:32]} bxc4 {[%emt 0:00:05] K3P-K3P} 37. Kf3 {[%emt 0:00:06]} f5 {[%emt 0:01:15]} 38. Ke3 {[%emt 0:00:42] Kd4 would kill now.} f4+ $2 {[%emt 0:00:14][%mdl 8192] [#]} 39. Kxf4 {[%emt 0:00:31]} Ke6 {[%emt 0:01:05]} 40. Ke4 {Weighted Error Value: White=0.05 (flawless) /Black=0.27 (precise) .  Loses game:     	---       	Black=1      Mistake:       	White=1     	Black=2      Inaccurate:     	White=1     	---        OK:         	White=16    	Black=12     Best:        	White=3     	---        Strong:       	White=2     	Black=2} 1-0

[Event "WSTCC-50 2024"]
[Site "Krakow"]
[Date "2024.07.04"]
[Round "3.15"]
[White "Lyons, Brendan"]
[Black "Staeblein, Christoph"]
[Result "0-1"]
[ECO "A05"]
[WhiteElo "1920"]
[BlackElo "1991"]
[Annotator "NA RC"]
[PlyCount "100"]
[EventDate "2024.07.01"]
[EventType "team-tourn"]
[EventCountry "POL"]
[SourceTitle "playchess.com"]
[Source "ChessBase"]
[SourceQuality "1"]
[TimeControl "40/5400+30:1800+30"]

1. Nf3 {[%emt 0:00:13]} Nf6 {[%emt 0:00:10]} 2. g3 {[%emt 0:00:19]} b5 {[%emt 0:00:21]} 3. Bg2 {[%emt 0:01:06]} Bb7 {[%emt 0:00:06]} 4. O-O {[%emt 0:00:14]} e6 {[%emt 0:01:35]} 5. b3 {[%emt 0:07:59]} Be7 {[%emt 0:01:34]} 6. Bb2 {[%emt 0:01:26]} O-O {[%emt 0:00:37]} 7. c4 {[%emt 0:03:21]} bxc4 {[%emt 0:02:47]} 8. bxc4 {[%emt 0:00:18]} c5 {[%emt 0:01:20]} 9. d3 {[%emt 0:07:43]} d6 {[%emt 0:03:49]} 10. e4 {[%emt 0:08:24]} Nfd7 {[%emt 0:05:32]} 11. Nbd2 {[%emt 0:10:47]} Nc6 {[%emt 0:04:03]} 12. d4 {[%emt 0:10:39]} cxd4 {[%emt 0:20:36]} 13. Nxd4 {[%emt 0:00:19]} Nxd4 {[%emt 0:00:22]} 14. Bxd4 {[%emt 0:00:10]} Qc7 {[%emt 0:01:06]} 15. Rb1 {[%emt 0:02:16]} Bc6 {[%emt 0:07:19]} 16. f4 {[%emt 0:07:02]} Rab8 {[%emt 0:10:02]} 17. Qe2 {[%emt 0:07:45]} Rxb1 {[%emt 0:04:36]} 18. Nxb1 {[%emt 0:01:29]} Bf6 {[%emt 0:07:30]} 19. Bxf6 {[%emt 0:03:29]} Nxf6 {[%emt 0:00:34]} 20. Nc3 {[%emt 0:01:46]} Rb8 {[%emt 0:04:36]} 21. Rd1 {[%emt 0:06:30]} Ne8 {[%emt 0:01:11]} 22. h4 {[%emt 0:09:30]} Qa5 {[%emt 0:00:51]} 23. Qd3 {[%emt 0:04:57]} Rb2 {[%emt 0:03:19]} 24. Qd4 {[%emt 0:01:54]} Rc2 {[%emt 0:05:07]} 25. Rd3 {[%emt 0:01:14]} Qb6 {[%emt 0:02:11]} 26. Qxb6 {[%emt 0:01:19]} axb6 {[%emt 0:00:08]} 27. Nb5 {[%emt 0:00:23]} Rxg2+ {[%emt 0:05:37]} 28. Kxg2 {[%emt 0:00:01]} Bxe4+ {[%emt 0:00:08]} 29. Rf3 {[%emt 0:00:02]} Kf8 {[%emt 0:00:26]} 30. Na7 {[%emt 0:00:27]} d5 {[%emt 0:02:25]} 31. cxd5 {[%emt 0:01:37]} Bxd5 {[%emt 0:01:30]} 32. Kf2 {[%emt 0:00:15]} Bxf3 {[%emt 0:00:12]} 33. Kxf3 {[%emt 0:00:04]} Nd6 {[%emt 0:00:15]} 34. g4 {[%emt 0:01:04]} Ke8 {[%emt 0:00:35]} 35. Nc6 {[%emt 0:00:43]} f6 {[%emt 0:00:39]} 36. Ke3 {[%emt 0:00:33]} Kd7 {[%emt 0:01:08]} 37. Nd4 {[%emt 0:00:54]} e5 {[%emt 0:01:12]} 38. fxe5 {[%emt 0:00:35]} fxe5 {[%emt 0:00:07]} 39. Nf5 {[%emt 0:00:28]} Nxf5+ {[%emt 0:02:41]} 40. gxf5 {[%emt 0:00:03]} g6 {[%emt 0:01:00]} 41. Ke4 {[%emt 0:30:37]} Kd6 {[%emt 0:30:11]} 42. a4 {[%emt 0:00:58]} gxf5+ {[%emt 0:00:09]} 43. Kxf5 {[%emt 0:00:26]} Kd5 {[%emt 0:00:08]} 44. h5 {[%emt 0:00:36]} e4 {[%emt 0:00:09]} 45. h6 {[%emt 0:00:23]} e3 {[%emt 0:00:08]} 46. Kf6 {[%emt 0:00:13]} e2 {[%emt 0:00:06]} 47. Kg7 {[%emt 0:00:06]} e1=Q {[%emt 0:00:07]} 48. Kxh7 {[%emt 0:00:14]} Qg3 {[%emt 0:00:19]} 49. Kh8 {[%emt 0:00:23]} Ke6 {[%emt 0:00:09]} 50. a5 {[%emt 0:00:19]} Ke5 0-1

[Event "WSTCC-50 2024"]
[Site "Krakow"]
[Date "2024.07.04"]
[Round "3.15"]
[White "Brookfield, Toby"]
[Black "Santanna, Paulo"]
[Result "0-1"]
[ECO "B20"]
[WhiteElo "1894"]
[BlackElo "2020"]
[Annotator "NA RC"]
[PlyCount "96"]
[EventDate "2024.07.01"]
[EventType "team-tourn"]
[EventCountry "POL"]
[SourceTitle "playchess.com"]
[Source "ChessBase"]
[SourceQuality "1"]
[TimeControl "40/5400+30:1800+30"]

1. e4 {[%emt 0:00:06]} c5 {[%emt 0:00:09]} 2. Be2 {[%emt 0:00:11]} Nc6 {[%emt 0:00:44]} 3. f4 {[%emt 0:00:10]} g6 {[%emt 0:00:30]} 4. Nf3 {[%emt 0:00:38]} Bg7 {[%emt 0:00:15]} 5. O-O {[%emt 0:00:50]} Nf6 {[%emt 0:01:04]} 6. d3 O-O 7. c3 {[%emt 0:04:29]} d6 {[%emt 0:01:52]} 8. Na3 {[%emt 0:01:51]} Rb8 {[%emt 0:00:38]} 9. Qe1 {[%emt 0:01:45]} b5 {[%emt 0:02:03]} 10. e5 {[%emt 0:08:17]} dxe5 {[%emt 0:03:57]} 11. fxe5 {[%emt 0:00:58]} Ng4 {[%emt 0:02:33]} 12. e6 {[%emt 0:09:35]} f6 {[%emt 0:09:00]} 13. Bf4 {[%emt 0:17:08]} Rb6 {[%emt 0:28:41]} 14. Rd1 {[%emt 0:12:27]} Bxe6 {[%emt 0:04:23]} 15. d4 {[%emt 0:00:15]} c4 {[%emt 0:00:52]} 16. d5 {[%emt 0:09:43]} Bxd5 {[%emt 0:00:32]} 17. Nd4 {[%emt 0:06:06]} Nxd4 {[%emt 0:05:38]} 18. Bxg4 {[%emt 0:03:21]} f5 {[%emt 0:02:02]} 19. Bf3 {[%emt 0:07:36]} Nxf3+ {[%emt 0:00:39]} 20. Rxf3 {[%emt 0:00:48]} e6 {[%emt 0:08:28]} 21. Nc2 {[%emt 0:01:52]} Qa8 {[%emt 0:02:50]} 22. Rf2 {[%emt 0:00:14]} Qc8 {[%emt 0:07:29]} 23. Be3 {[%emt 0:00:32]} Rb7 {[%emt 0:02:16]} 24. Nb4 {[%emt 0:03:08]} Rd7 {[%emt 0:02:40]} 25. Rfd2 {[%emt 0:01:12]} Qb7 {[%emt 0:02:31]} 26. Bf4 {[%emt 0:02:06]} Kf7 {[%emt 0:02:17]} 27. Qh4 {[%emt 0:01:07]} Kg8 {[%emt 0:00:43]} 28. Qe1 {[%emt 0:00:29]} Kf7 {[%emt 0:00:05]} 29. Qh4 {[%emt 0:00:06]} h6 {[%emt 0:01:02]} 30. Qg3 {[%emt 0:01:45]} g5 {[%emt 0:03:15]} 31. Be5 {[%emt 0:01:17]} Rfd8 {[%emt 0:02:48]} 32. Bxg7 {[%emt 0:01:54]} Kxg7 {[%emt 0:00:03]} 33. h4 {[%emt 0:00:24]} g4 {[%emt 0:00:25]} 34. Qe5+ {[%emt 0:01:00]} Kf7 {[%emt 0:00:19]} 35. Qf4 {[%emt 0:01:02]} Kg6 {[%emt 0:01:27]} 36. h5+ {[%emt 0:01:07]} Kxh5 {[%emt 0:00:27]} 37. g3 {[%emt 0:00:14]} Qb6+ {[%emt 0:00:48]} 38. Kf1 {[%emt 0:01:16]} Kg6 {[%emt 0:02:10]} 39. Rh2 {[%emt 0:01:13]} h5 {[%emt 0:00:15]} 40. Rdd2 {[%emt 0:01:15]} Qd6 {[%emt 0:01:31]} 41. Qe3 {[%emt 0:03:24]} Rf8 {[%emt 0:06:26]} 42. Nxd5 {[%emt 0:09:54]} exd5 {[%emt 0:00:07]} 43. Rdf2 {[%emt 0:02:38]} Re7 {[%emt 0:01:07]} 44. Qd2 {[%emt 0:00:53]} Qxg3 {[%emt 0:01:27]} 45. Rxh5 {[%emt 0:02:34]} Qd3+ {[%emt 0:00:34]} 46. Qxd3 {[%emt 0:00:49]} cxd3 {[%emt 0:00:02]} 47. Rfh2 {[%emt 0:00:19]} d2 {[%emt 0:00:30]} 48. Rh6+ {[%emt 0:00:25]} Kg5 {[%emt 0:00:06]} 0-1

[Event "WSTCC-50 2024"]
[Site "Krakow"]
[Date "2024.07.04"]
[Round "3.16"]
[White "D'Amore, Carlo"]
[Black "Jackson, Sheila"]
[Result "1-0"]
[ECO "A04"]
[WhiteElo "2357"]
[BlackElo "1988"]
[Annotator "TA"]
[PlyCount "65"]
[EventDate "2024.07.01"]
[EventType "team-tourn"]
[EventCountry "POL"]
[SourceTitle "playchess.com"]
[Source "ChessBase"]
[SourceQuality "1"]
[TimeControl "40/5400+30:1800+30"]

{[%evp 16,65,-14,-16,0,-34,-31,-37,-8,-25,-20,-25,-11,-28,-18,-30,0,-56,-19,-38,-30,-63,-45,-48,-22,-21,-29,-8,-16,-106,-81,-96,-89,-100,-89,-88,-108,-110,0,2,16,-108,-100,-98,-106,-92,-92,-118,-56,-66,1098,1095]} 1. Nf3 {[%emt 0:00:17]} c5 {[%emt 0:00:09]} 2. g3 {[%emt 0:04:49]} Nc6 {[%emt 0:03:07]} 3. Bg2 {[%emt 0:01:06]} Nf6 {[%emt 0:02:43]} 4. O-O {[%emt 0:08:23]} g6 {[%emt 0:02:14]} 5. d3 {[%emt 0:03:27]} Bg7 {[%emt 0:01:45]} 6. e4 {[%emt 0:00:17]} d6 {[%emt 0:01:02]} 7. h3 {[%emt 0:00:10]} O-O {[%emt 0:01:03]} 8. Nc3 {[%emt 0:00:26]} Rb8 {[%emt 0:04:42]} 9. Be3 {[%emt 0:01:00]} e5 {[%emt 0:01:07]} 10. Qd2 {[%emt 0:08:32]} Nd4 {[%emt 0:02:22]} 11. Nh2 {[%emt 0:01:10]} Be6 {[%emt 0:06:40] Black is slightly better.} 12. Nd1 {[%emt 0:06:34]} Qd7 {[%emt 0:05:53]} 13. g4 {[%emt 0:01:33]} h5 {[%emt 0:01:00]} 14. f3 {[%emt 0:00:13]} b6 {[%emt 0:05:04]} 15. c3 {[%emt 0:11:44]} Nc6 {[%emt 0:00:13]} 16. Nf2 {[%emt 0:00:44]} (16. Bh6 $11) 16... hxg4 {[%emt 0:08:44]} 17. fxg4 {[%emt 0:01:32]} d5 {[%emt 0:00:30]} 18. Bg5 {[%emt 0:14:26]} Nh7 {[%emt 0:02:22]} 19. Bh6 {[%emt 0:01:56]} Rbd8 {[%emt 0:01:08]} 20. Bxg7 {[%emt 0:09:18]} Kxg7 {[%emt 0:00:01]} 21. exd5 {[%emt 0:00:27]} Bxd5 {[%emt 0:00:06]} 22. g5 {[%emt 0:01:19]} (22. Bxd5 $11 {keeps the balance.} Qxd5 23. Qe3) 22... Bxg2 $17 {[%emt 0:09:20]} 23. Kxg2 {[%emt 0:00:05] [#]} Qd5+ $1 {[%emt 0:05:08]} 24. Nf3 {[%emt 0:03:01]} c4 {[%emt 0:10:23][%cal Rc4d3]} 25. Qe3 {[%emt 0:01:18]} cxd3 {[%emt 0:01:04] aiming for ...f5.} 26. Rad1 {[%emt 0:03:14]} f6 {[%emt 0:05:49]} ({Better is} 26... Qxa2 $17 27. Nxd3 Rfe8) 27. Rxd3 $11 {[%emt 0:00:52]} Qxa2 {[%emt 0:00:11]} 28. b4 {[%emt 0:02:59]} (28. Ng4 $11 Rxd3 (28... Qxb2+ $2 29. Rf2 $18) 29. gxf6+ Nxf6 30. Qh6+ (30. Qxd3 $2 e4 $19) 30... Kg8 31. Qxg6+ (31. Ngxe5 Nxe5 32. Qg5 Qxb2+ 33. Rf2 Qxf2+ 34. Kxf2 Ne4+ 35. Ke1 Rfxf3 36. Qg2 Rfe3+) 31... Kh8 32. Nxf6 (32. Qxd3 Qxb2+ 33. Kg3 e4 $11)) 28... Nxg5 $17 {[%emt 0:01:02]} 29. Rxd8 {[%emt 0:01:16]} Rxd8 {[%emt 0:02:56]} 30. Nxg5 {[%emt 0:00:07]} fxg5 {[%emt 0:00:14]} 31. Kg1 {[%emt 0:02:11]} Qc4 {[%emt 0:05:16] Wards off Ng4} (31... Qd2 $17 32. Qg3 a6) 32. Qxg5 $15 {[%emt 0:03:06] [#] Black must now prevent Ng4.} Rd6 $2 {[%emt 0:02:19][%mdl 8192]} (32... Qxc3 $2 {too greedy.} 33. Rc1 (33. b5 Rf8 $16) 33... Qd2 (33... Qf3 $2 34. Rxc6 Qxc6 35. Qe7+ Kg8 36. Qxd8+ Kf7 37. Qd2 $18) 34. Qxd2 Rxd2 35. Rxc6 $18) (32... Rf8 $15 33. Qe3 Rf4) 33. Ng4 {[%emt 0:00:59] Weighted Error Value: White=0.22 (precise) /Black=0.20 (precise) .  Loses game:     	---       	Black=1      Mistake:       	White=3     	Black=2      Inaccurate:     	White=2     	Black=3      OK:         	White=7     	Black=3      Best:        	White=4     	Black=2      Strong:       	---       	Black=1} 1-0

[Event "WSTCC-50 2024"]
[Site "Krakow"]
[Date "2024.07.04"]
[Round "3.16"]
[White "Koop, Thilo"]
[Black "O`Dwyer, Fergal"]
[Result "1/2-1/2"]
[ECO "B70"]
[WhiteElo "2088"]
[BlackElo "1935"]
[Annotator "NA RC"]
[PlyCount "84"]
[EventDate "2024.07.01"]
[EventType "team-tourn"]
[EventCountry "POL"]
[SourceTitle "playchess.com"]
[Source "ChessBase"]
[SourceQuality "1"]
[TimeControl "40/5400+30:1800+30"]

1. e4 {[%emt 0:00:07]} c5 {[%emt 0:00:25]} 2. Nf3 {[%emt 0:00:10]} d6 {[%emt 0:00:35]} 3. d4 {[%emt 0:00:12]} cxd4 {[%emt 0:00:39]} 4. Nxd4 {[%emt 0:00:10]} Nf6 {[%emt 0:00:45]} 5. Nc3 {[%emt 0:00:09]} g6 {[%emt 0:00:59]} 6. g3 {[%emt 0:00:12]} Bg7 {[%emt 0:12:36]} 7. Bg2 {[%emt 0:00:09]} O-O {[%emt 0:01:52]} 8. O-O {[%emt 0:00:21]} Bd7 {[%emt 0:05:34]} 9. h3 {[%emt 0:01:24]} Nc6 {[%emt 0:02:10]} 10. Nde2 {[%emt 0:00:14]} Rb8 {[%emt 0:06:24]} 11. a4 {[%emt 0:00:19]} a6 {[%emt 0:04:33]} 12. Be3 {[%emt 0:00:14]} b5 {[%emt 0:08:13]} 13. axb5 {[%emt 0:00:22]} axb5 {[%emt 0:00:25]} 14. Nd5 {[%emt 0:00:14]} Na5 {[%emt 0:17:25]} 15. Ba7 {[%emt 0:16:20]} Nc4 {[%emt 0:17:28]} 16. Bxb8 {[%emt 0:11:14]} Nxd5 {[%emt 0:04:16]} 17. Qxd5 {[%emt 0:04:30]} Qxb8 {[%emt 0:00:37]} 18. c3 {[%emt 0:02:48]} Nxb2 {[%emt 0:04:34]} 19. Rfb1 {[%emt 0:01:35]} Nc4 {[%emt 0:01:12]} 20. Qd1 {[%emt 0:02:20]} Qc8 {[%emt 0:01:26]} 21. Kh2 {[%emt 0:00:59]} Qc5 {[%emt 0:01:07]} 22. Kg1 {[%emt 0:05:33]} Rb8 {[%emt 0:02:21]} 23. Nd4 {[%emt 0:19:14]} h5 {[%emt 0:01:46]} 24. Ne2 {[%emt 0:07:45]} Qc8 {[%emt 0:01:13]} 25. Nf4 {[%emt 0:04:47]} e6 {[%emt 0:02:24]} 26. Ne2 {[%emt 0:06:47]} Kh7 {[%emt 0:00:27]} 27. Rb4 {[%emt 0:00:36]} Bf8 {[%emt 0:00:40]} 28. Rb3 {[%emt 0:00:55]} Bh6 {[%emt 0:00:34]} 29. Ra2 {[%emt 0:00:38]} Qc5 {[%emt 0:00:39]} 30. Qd4 {[%emt 0:00:46]} Qc7 {[%emt 0:00:36]} 31. Ra7 {[%emt 0:00:31]} Qc8 {[%emt 0:00:23]} 32. e5 {[%emt 0:00:59]} Bg7 {[%emt 0:00:18]} 33. f4 {[%emt 0:01:31]} d5 {[%emt 0:00:44]} 34. Kh2 {[%emt 0:00:56]} Bf8 {[%emt 0:00:15]} 35. Qd3 {[%emt 0:00:19]} Bc5 {[%emt 0:00:30]} 36. Ra2 {[%emt 0:00:19]} Ra8 {[%emt 0:00:38]} 37. Qb1 {[%emt 0:00:25]} h4 {[%emt 0:00:47]} 38. Qa1 {[%emt 0:00:35]} hxg3+ {[%emt 0:00:19]} 39. Nxg3 {[%emt 0:00:17]} Rxa2 {[%emt 0:00:34]} 40. Qxa2 {[%emt 0:00:07]} Be3 {[%emt 0:01:24]} 41. Ne2 {[%emt 0:30:50]} Qd8 {[%emt 0:04:14]} 42. Kg3 {[%emt 0:00:00]} g5 {[%emt 0:11:00]} 1/2-1/2

[Event "WSTCC-50 2024"]
[Site "Krakow"]
[Date "2024.07.04"]
[Round "3.16"]
[White "Serafim Junior, Arnor"]
[Black "Goman, Colin"]
[Result "1-0"]
[ECO "A10"]
[WhiteElo "1770"]
[BlackElo "1759"]
[Annotator "NA RC"]
[PlyCount "81"]
[EventDate "2024.07.01"]
[EventType "team-tourn"]
[EventCountry "POL"]
[SourceTitle "playchess.com"]
[Source "ChessBase"]
[SourceQuality "1"]
[TimeControl "40/5400+30:1800+30"]

1. c4 {[%emt 0:00:07]} g6 {[%emt 0:04:16]} 2. Nc3 {[%emt 0:00:12]} Nf6 {[%emt 0:00:10]} 3. g3 {[%emt 0:00:29]} Bg7 {[%emt 0:01:41]} 4. Bg2 {[%emt 0:00:08]} O-O {[%emt 0:01:08]} 5. Nf3 {[%emt 0:00:16]} d6 {[%emt 0:01:00]} 6. O-O {[%emt 0:00:39]} c5 {[%emt 0:10:19]} 7. d4 {[%emt 0:04:11]} Nbd7 {[%emt 0:06:42]} 8. b3 {[%emt 0:02:46]} a6 {[%emt 0:10:05]} 9. Bb2 {[%emt 0:03:27]} Rb8 {[%emt 0:03:10]} 10. Qd3 {[%emt 0:06:09]} b5 {[%emt 0:04:52]} 11. cxb5 {[%emt 0:05:42]} axb5 {[%emt 0:01:34]} 12. Nxb5 {[%emt 0:14:01]} Ba6 {[%emt 0:00:16]} 13. a4 {[%emt 0:00:27]} Qb6 {[%emt 0:02:13]} 14. Nd2 {[%emt 0:10:08]} Bxb5 {[%emt 0:10:55]} 15. axb5 {[%emt 0:04:43]} Qxb5 {[%emt 0:02:02]} 16. Qxb5 {[%emt 0:05:56]} Rxb5 {[%emt 0:00:26]} 17. Ra7 {[%emt 0:00:19]} Rd8 {[%emt 0:08:54]} 18. dxc5 {[%emt 0:10:27]} Rxc5 {[%emt 0:04:08]} 19. Bxf6 {[%emt 0:02:29]} Bxf6 {[%emt 0:04:41]} 20. Ne4 {[%emt 0:00:26]} Rb5 {[%emt 0:06:01]} 21. Rxd7 {[%emt 0:08:51]} Rxd7 {[%emt 0:01:26]} 22. Nxf6+ {[%emt 0:00:08]} exf6 {[%emt 0:00:36]} 23. Bc6 {[%emt 0:00:08]} Rxb3 {[%emt 0:00:43]} 24. Bxd7 {[%emt 0:00:12]} Rb2 {[%emt 0:00:54]} 25. e3 {[%emt 0:00:16]} Rb7 {[%emt 0:00:33]} 26. Bc6 {[%emt 0:01:33]} Rc7 {[%emt 0:00:31]} 27. Bf3 {[%emt 0:00:51]} Rd7 {[%emt 0:02:15]} 28. Rd1 {[%emt 0:00:18]} Kf8 29. Rb1 {[%emt 0:01:45]} f5 {[%emt 0:02:53]} 30. Rb7 {[%emt 0:00:29]} Ke7 {[%emt 0:04:06]} 31. Bd5 {[%emt 0:00:42]} Rxb7 {[%emt 0:00:49]} 32. Bxb7 {[%emt 0:00:04]} Ke6 {[%emt 0:00:13]} 33. Kg2 {[%emt 0:00:47]} h6 {[%emt 0:03:49]} 34. f4 {[%emt 0:05:05]} g5 {[%emt 0:01:26]} 35. Kf3 {[%emt 0:00:19]} g4+ {[%emt 0:02:09]} 36. Ke2 {[%emt 0:00:14]} Kf6 {[%emt 0:00:38]} 37. Kd3 {[%emt 0:00:15]} Ke6 {[%emt 0:00:28]} 38. Kd4 {[%emt 0:00:13]} Kd7 {[%emt 0:00:26]} 39. Kd5 {[%emt 0:00:27]} f6 {[%emt 0:00:55]} 40. Ba6 {[%emt 0:00:16]} h5 {[%emt 0:00:33]} 41. Bd3 {[%emt 0:30:13]} 1-0